fUSD/lending_fUSD_20240827
["ID","MTS","AMOUNT","RATE_DAILY","PERIOD"]
[336274767,1724754658943,-654.87,0.00010995,2]
[336274769,1724754658952,-654.87,0.00010995,2]
[336274771,1724754658961,-654.99432443,0.00010995,2]
[336274773,1724754658971,-500.0,0.00010995,2]
[336274775,1724754658980,-500.0,0.00010995,2]
[336274777,1724754658990,-500.0,0.00010995,2]
[336274779,1724754659000,-744.8,0.00010995,2]
[336274781,1724754659009,-500.0,0.00010995,2]
[336274783,1724754659019,-500.0,0.00010995,2]
[336274785,1724754659028,-500.0,0.00010995,2]
[336274801,1724754659037,-1723.29,0.00010995,2]
[336274803,1724754659187,-500.0,0.00010995,2]
[336274805,1724754659197,-1723.29,0.00010995,2]
[336274807,1724754659206,-1723.29,0.00010995,2]
[336274809,1724754659216,-1723.29,0.00010995,2]
[336274811,1724754659225,-1723.40651256,0.00010995,2]
[336274813,1724754659234,-500.0,0.00010995,2]
[336274815,1724754659243,-1448.48,0.00010995,2]
[336274817,1724754659253,-500.0,0.00010995,2]
[336274819,1724754659262,-500.0,0.00010995,2]
[336274821,1724754659271,-504.7198612,0.00010995,2]
[336274823,1724754659280,-1927.41,0.00010995,2]
[336274825,1724754659289,-1927.41,0.00010995,2]
[336274827,1724754659298,-1927.41,0.00010995,2]
[336274829,1724754659307,-1927.41,0.00010995,2]
[336274831,1724754659317,-1927.63675429,0.00010995,2]
[336274833,1724754659326,-1735.02,0.00010995,2]
[336274835,1724754659335,-500.0,0.00010995,2]
[336274837,1724754659345,-4508.4,0.00010995,2]
[336274839,1724754659354,-2666.6,0.00010995,2]
[336274841,1724754659363,-2666.6,0.00010995,2]
[336274843,1724754659372,-2666.6,0.00010995,2]
[336274845,1724754659381,-2666.6,0.00010995,2]
[336274847,1724754659390,-2666.75054241,0.00010995,2]
[336274849,1724754659398,-500.0,0.00010995,2]
[336274851,1724754659408,-500.0,0.00010995,2]
[336274853,1724754659418,-500.0,0.00010995,2]
[336274855,1724754659428,-502.11661713,0.00010995,2]
[336274857,1724754659438,-792.52,0.00010995,2]
[336274859,1724754659448,-792.52,0.00010995,2]
[336274861,1724754659458,-792.52,0.00010995,2]
[336274863,1724754659467,-792.52,0.00010995,2]
[336274865,1724754659476,-792.67,0.00010995,2]
[336274867,1724754659486,-1956.4,0.00010995,2]
[336274869,1724754659495,-1438.02,0.00010995,2]
[336274871,1724754659505,-1438.02,0.00010995,2]
[336274873,1724754659514,-1438.02,0.00010995,2]
[336274875,1724754659524,-1438.02,0.00010995,2]
[336274877,1724754659533,-1438.06745651,0.00010995,2]
[336274879,1724754659542,-500.0,0.00010995,2]
[336274881,1724754659552,-500.0,0.00010995,2]
[336274883,1724754659561,-3911.0,0.00010995,2]
[336274885,1724754659570,-1451.67,0.00010995,2]
[336274886,1724754659579,-1451.67,0.00010995,2]
[336274888,1724754659589,-1451.67,0.00010995,2]
[336274890,1724754659598,-500.0,0.00010995,2]
[336274892,1724754659608,-1451.67,0.00010995,2]
[336274894,1724754659617,-1451.86633342,0.00010995,2]
[336274896,1724754659627,-500.0,0.00010995,2]
[336274898,1724754659637,-3388.1,0.00010995,2]
[336274900,1724754659647,-500.0,0.00010995,2]
[336274902,1724754659656,-500.0,0.00010995,2]
[336274904,1724754659666,-1238.05,0.00010995,2]
[336274906,1724754659675,-1238.05,0.00010995,2]
[336274908,1724754659685,-1687.78,0.00010995,2]
[336274910,1724754659695,-1238.05,0.00010995,2]
[336274913,1724754659705,-1687.78,0.00010995,2]
[336274915,1724754659715,-1238.05,0.00010995,2]
[336274916,1724754659725,-1687.78,0.00010995,2]
[336274918,1724754659735,-500.0,0.00010995,2]
[336274920,1724754659745,-1238.13,0.00010995,2]
[336274922,1724754659754,-1687.78,0.00010995,2]
[336274924,1724754659764,-1687.8,0.00010995,2]
[336274927,1724754659773,-558.67,0.00010995,2]
[336274928,1724754659783,-500.0,0.00010995,2]
[336274931,1724754659796,-500.0,0.00010995,2]
[336274933,1724754659806,-500.0,0.00010995,2]
[336274935,1724754659817,-500.0,0.00010995,2]
[336274937,1724754659827,-1038.89,0.00010995,2]
[336274939,1724754659837,-1038.89,0.00010995,2]
[336274941,1724754659847,-1038.89,0.00010995,2]
[336274943,1724754659857,-1038.89,0.00010995,2]
[336274944,1724754659867,-1038.99316336,0.00010995,2]
[336274946,1724754659876,-500.0,0.00010995,2]
[336274948,1724754659886,-500.0,0.00010995,2]
[336274949,1724754659896,-2187.09,0.00010995,2]
[336274950,1724754659906,-500.0,0.00010995,2]
[336274951,1724754659916,-1753.26,0.00010995,2]
[336274952,1724754659930,-1753.26,0.00010995,2]
[336274953,1724754659940,-1753.26,0.00010995,2]
[336274954,1724754659950,-1753.26,0.00010995,2]
[336274955,1724754659959,-1753.39181711,0.00010995,2]
[336274956,1724754659968,-500.0,0.00010995,2]
[336274957,1724754659979,-500.0,0.00010995,2]
[336274958,1724754659989,-500.0,0.00010995,2]
[336274959,1724754660000,-500.0,0.00010995,2]
[336274960,1724754660010,-500.0,0.00010995,2]
[336274961,1724754660022,-671.73,0.00010995,2]
[336274962,1724754660032,-671.73,0.00010995,2]
[336274963,1724754660042,-671.73,0.00010995,2]
[336274964,1724754660053,-671.73,0.00010995,2]
[336274965,1724754660064,-671.94850062,0.00010995,2]
[336274966,1724754660074,-2708.16,0.00010995,2]
[336274967,1724754660085,-500.0,0.00010995,2]
[336274968,1724754660094,-500.0,0.00010995,2]
[336274969,1724754660105,-1327.99,0.00010995,2]
[336274970,1724754660115,-777.13,0.00010995,2]
[336274971,1724754660125,-777.13,0.00010995,2]
[336274972,1724754660136,-777.13,0.00010995,2]
[336274973,1724754660145,-777.13,0.00010995,2]
[336274974,1724754660156,-777.22640863,0.00010995,2]
[336274975,1724754660165,-5024.94,0.00010995,2]
[336274976,1724754660175,-605.08,0.00010995,2]
[336274977,1724754660185,-605.08,0.00010995,2]
[336274978,1724754660194,-605.08,0.00010995,2]
[336274979,1724754660204,-605.08,0.00010995,2]
[336274980,1724754660214,-605.26,0.00010995,2]
[336274981,1724754660223,-732.49,0.00010995,2]
[336274982,1724754660234,-1802.31,0.00010995,2]
[336274983,1724754660244,-535.97,0.00010995,2]
[336274984,1724754660253,-800.9,0.00010995,2]
[336274985,1724754660263,-1516.7,0.00010995,2]
[336274986,1724754660273,-1516.7,0.00010995,2]
[336274987,1724754660282,-500.0,0.00010995,2]
[336274988,1724754660292,-1516.7,0.00010995,2]
[336274989,1724754660301,-1516.7,0.00010995,2]
[336274990,1724754660311,-1516.71986074,0.00010995,2]
[336274991,1724754660320,-500.0,0.00010995,2]
[336274992,1724754660328,-929.74,0.00010995,2]
[336274993,1724754660337,-1400.67,0.00010995,2]
[336274994,1724754660347,-2619.03,0.00010995,2]
[336274995,1724754660356,-500.0,0.00010995,2]
[336274996,1724754660365,-674.4,0.00010995,2]
[336274997,1724754660374,-2475.38,0.00010995,2]
[336274998,1724754660384,-500.0,0.00010995,2]
[336274999,1724754660393,-665.62,0.00010995,2]
[336275000,1724754660402,-637.94,0.00010995,2]
[336275001,1724754660413,-500.0,0.00010995,2]
[336275002,1724754660422,-500.0,0.00010995,2]
[336275003,1724754660432,-1427.77,0.00010995,2]
[336275004,1724754660443,-500.0,0.00010995,2]
[336275005,1724754660453,-500.0,0.00010995,2]
[336275006,1724754660463,-1867.26,0.00010995,2]
[336275007,1724754660472,-2746.93,0.00010995,2]
[336275008,1724754660481,-500.0,0.00010995,2]
[336275009,1724754660490,-1301.88,0.00010995,2]
[336275010,1724754660500,-500.0,0.00010995,2]
[336275011,1724754660510,-671.99,0.00010995,2]
[336275012,1724754660521,-4094.81,0.00010995,2]
[336275013,1724754660530,-671.99,0.00010995,2]
[336275014,1724754660540,-500.0,0.00010995,2]
[336275015,1724754660550,-671.99,0.00010995,2]
[336275016,1724754660560,-671.99,0.00010995,2]
[336275017,1724754660570,-672.1839257,0.00010995,2]
[336275018,1724754660579,-500.0,0.00010995,2]
[336275019,1724754660589,-2418.03,0.00010995,2]
[336275020,1724754660598,-500.0,0.00010995,2]
[336275021,1724754660607,-500.0,0.00010996,2]
[336275022,1724754660616,-317.26372698,0.00010996,2]
[336275023,1724754660626,-500.0,0.00010996,2]
[336275024,1724754660635,-500.0,0.00010996,2]
[336275025,1724754660644,-179.49384636,0.00010996,2]
[336275026,1724754660653,-500.0,0.00010996,2]
[336275027,1724754660663,-500.0,0.00010996,2]
[336275028,1724754660672,-500.0,0.00010996,2]
[336275029,1724754660681,-500.0,0.00010996,2]
[336275030,1724754660690,-500.0,0.00010996,2]
[336275031,1724754660699,-536.39,0.00010996,2]
[336275032,1724754660709,-500.0,0.00010996,2]
[336275033,1724754660718,-500.0,0.00010996,2]
[336275034,1724754660727,-500.0,0.00010996,2]
[336275035,1724754660736,-500.0,0.00010996,2]
[336275036,1724754660745,-500.0,0.00010996,2]
[336275037,1724754660754,-500.0,0.00010996,2]
[336275038,1724754660764,-216.05143494,0.00010996,2]
[336275039,1724754660774,-500.0,0.00010996,2]
[336275040,1724754660783,-500.0,0.00010996,2]
[336275041,1724754660793,-500.85,0.00010996,2]
[336275042,1724754660802,-500.0,0.00010996,2]
[336275043,1724754660810,-503.61909831,0.00010996,2]
[336275044,1724754660820,-500.0,0.00010996,2]
[336275045,1724754660839,-500.0,0.00010996,2]
[336275046,1724754660848,-503.50886785,0.00010996,2]
[336275047,1724754660858,-500.0,0.00010996,2]
[336275048,1724754660867,-500.0,0.00010996,2]
[336275049,1724754660878,-500.0,0.00010996,2]
[336275050,1724754660889,-536.33478371,0.00010996,2]
[336275051,1724754660898,-500.0,0.00010996,2]
[336275052,1724754660907,-666.24,0.00010996,2]
[336275053,1724754660922,-500.0,0.00010996,2]
[336275054,1724754660933,-500.0,0.00010996,2]
[336275055,1724754660942,-832.1,0.00010996,2]
[336275056,1724754660951,-500.0,0.00010996,2]
[336275057,1724754660962,-500.0,0.00010996,2]
[336275058,1724754660971,-500.0,0.00010996,2]
[336275059,1724754660980,-502.69537218,0.00010996,2]
[336275060,1724754660990,-567.36,0.00010996,2]
[336275061,1724754660999,-567.36,0.00010996,2]
[336275062,1724754661010,-758.39,0.00010996,2]
[336275063,1724754661020,-997.9,0.00010996,2]
[336275064,1724754661029,-500.0,0.00010996,2]
[336275065,1724754661039,-500.0,0.00010996,2]
[336275066,1724754661048,-500.0,0.00010996,2]
[336275067,1724754661058,-539.85798054,0.00010996,2]
[336275068,1724754661067,-500.0,0.00010996,2]
[336275069,1724754661078,-500.0,0.00010996,2]
[336275070,1724754661087,-658.46,0.00010996,2]
[336275071,1724754661097,-658.46,0.00010996,2]
[336275072,1724754661107,-500.0,0.00010996,2]
[336275073,1724754661117,-666.14,0.00010996,2]
[336275074,1724754661126,-1214.35,0.00010996,2]
[336275075,1724754661135,-1214.35,0.00010996,2]
[336275076,1724754661145,-1097.55,0.00010996,2]
[336275077,1724754661154,-1097.55,0.00010996,2]
[336275078,1724754661163,-500.0,0.00010996,2]
[336275079,1724754661173,-500.0,0.00010996,2]
[336275080,1724754661182,-500.0,0.00010996,2]
[336275081,1724754661192,-500.0,0.00010996,2]
[336275082,1724754661201,-500.0,0.00010996,2]
[336275083,1724754661211,-500.0,0.00010996,2]
[336275084,1724754661220,-512.08,0.00010996,2]
[336275085,1724754661230,-512.08,0.00010996,2]
[336275086,1724754661239,-738.48,0.00010996,2]
[336275087,1724754661248,-738.48,0.00010996,2]
[336275088,1724754661259,-1064.91,0.00010996,2]
[336275089,1724754661269,-1064.91,0.00010996,2]
[336275090,1724754661278,-593.96439834,0.00010996,2]
[336275091,1724754661288,-1041.78,0.00010996,2]
[336275092,1724754661298,-1041.78,0.00010996,2]
[336275093,1724754661307,-500.0,0.00010996,2]
[336275094,1724754661316,-500.0,0.00010996,2]
[336275095,1724754661325,-998.42,0.00010996,2]
[336275096,1724754661335,-998.42,0.00010996,2]
[336275097,1724754661344,-836.57,0.00010996,2]
[336275098,1724754661353,-836.57,0.00010996,2]
[336275099,1724754661362,-500.0,0.00010996,2]
[336275100,1724754661371,-581.77,0.00010996,2]
[336275101,1724754661380,-581.77,0.00010996,2]
[336275102,1724754661389,-500.0,0.00010996,2]
[336275103,1724754661399,-500.0,0.00010996,2]
[336275104,1724754661410,-1081.24,0.00010996,2]
[336275105,1724754661419,-500.0,0.00010996,2]
[336275106,1724754661428,-500.0,0.00010996,2]
[336275107,1724754661439,-885.42,0.00010996,2]
[336275108,1724754661448,-885.42,0.00010996,2]
[336275109,1724754661458,-500.0,0.00010996,2]
[336275110,1724754661467,-500.0,0.00010996,2]
[336275111,1724754661476,-613.7,0.00010996,2]
[336275112,1724754661486,-500.0,0.00010996,2]
[336275113,1724754661495,-500.0,0.00010996,2]
[336275114,1724754661504,-500.0,0.00010996,2]
[336275115,1724754661514,-668.44,0.00010996,2]
[336275116,1724754661524,-668.44,0.00010996,2]
[336275117,1724754661533,-635.44,0.00010996,2]
[336275118,1724754661542,-764.92,0.00010996,2]
[336275119,1724754661551,-764.92,0.00010996,2]
[336275120,1724754661560,-544.05,0.00010996,2]
[336275121,1724754661570,-774.03,0.00010996,2]
[336275122,1724754661579,-162.79204835,0.00010996,2]
[336275123,1724754661588,-500.0,0.00010996,2]
[336275124,1724754661598,-610.6,0.00010996,2]
[336275125,1724754661607,-500.0,0.00010996,2]
[336275126,1724754661616,-500.0,0.00010996,2]
[336275127,1724754661626,-500.0,0.00010996,2]
[336275128,1724754661635,-500.0,0.00010996,2]
[336275129,1724754661644,-500.0,0.00010996,2]
[336275130,1724754661653,-500.0,0.00010996,2]
[336275131,1724754661662,-500.0,0.00010996,2]
[336275132,1724754661671,-354.14149545,0.00010996,2]
[336275133,1724754661681,-500.0,0.00010996,2]
[336275134,1724754661690,-237.16,0.00010996,2]
[336275135,1724754661699,-500.0,0.00010996,2]
[336275136,1724754661709,-500.0,0.00010996,2]
[336275137,1724754661718,-500.0,0.00010996,2]
[336275138,1724754661727,-500.0,0.00010996,2]
[336275139,1724754661737,-500.0,0.00010996,2]
[336275140,1724754661746,-500.0,0.00010996,2]
[336275141,1724754661755,-500.0,0.00010996,2]
[336275142,1724754661764,-188.02,0.00010996,2]
[336275143,1724754661773,-500.0,0.00010996,2]
[336275144,1724754661782,-400.0,0.00010996,2]
[336275145,1724754661792,-500.0,0.00010996,2]
[336275146,1724754661801,-500.0,0.00010996,2]
[336275147,1724754661811,-500.0,0.00010996,2]
[336275148,1724754661820,-823.06,0.00010996,2]
[336275149,1724754661830,-823.06,0.00010996,2]
[336275150,1724754661839,-151.0,0.00010996,2]
[336275151,1724754661849,-500.0,0.00010996,2]
[336275152,1724754661858,-500.0,0.00010996,2]
[336275153,1724754661868,-500.0,0.00010996,2]
[336275154,1724754661877,-500.0,0.00010996,2]
[336275155,1724754661886,-500.0,0.00010996,2]
[336275156,1724754661895,-500.0,0.00010996,2]
[336275157,1724754661905,-500.0,0.00010996,2]
[336275158,1724754661914,-500.0,0.00010996,2]
[336275159,1724754661928,-500.0,0.00010996,2]
[336275160,1724754661937,-500.0,0.00010996,2]
[336275161,1724754661946,-500.0,0.00010996,2]
[336275162,1724754661956,-500.0,0.00010996,2]
[336275163,1724754661965,-500.0,0.00010996,2]
[336275164,1724754661975,-500.0,0.00010996,2]
[336275165,1724754661983,-500.0,0.00010996,2]
[336275166,1724754661993,-500.0,0.00010996,2]
[336275167,1724754662004,-500.0,0.00010996,2]
[336275168,1724754662015,-273.15735072,0.00010996,2]
[336275169,1724754662027,-500.0,0.00010996,2]
[336275170,1724754662036,-500.0,0.00010996,2]
[336275171,1724754662045,-500.0,0.00010996,2]
[336275172,1724754662055,-500.0,0.00010996,2]
[336275173,1724754662064,-500.0,0.00010996,2]
[336275174,1724754662073,-500.0,0.00010996,2]
[336275175,1724754662227,-500.0,0.00010996,2]
[336275176,1724754662237,-500.0,0.00010996,2]
[336275177,1724754662248,-500.0,0.00010996,2]
[336275178,1724754662257,-500.0,0.00010996,2]
[336275179,1724754662267,-500.0,0.00010996,2]
[336275180,1724754662276,-500.0,0.00010996,2]
[336275181,1724754662285,-500.0,0.00010996,2]
[336275182,1724754662294,-500.0,0.00010996,2]
[336275183,1724754662304,-500.0,0.00010996,2]
[336275184,1724754662315,-631.77,0.00010996,2]
[336275185,1724754662324,-500.0,0.00010996,2]
[336275186,1724754662333,-500.0,0.00010996,2]
[336275187,1724754662343,-555.68235491,0.00010996,2]
[336275188,1724754662352,-618.3,0.00010996,2]
[336275189,1724754662362,-618.3,0.00010996,2]
[336275190,1724754662372,-500.0,0.00010996,2]
[336275191,1724754662381,-443.31,0.00010996,2]
[336275192,1724754662391,-500.0,0.00010996,2]
[336275193,1724754662400,-368.8,0.00010996,2]
[336275194,1724754662409,-500.0,0.00010996,2]
[336275195,1724754662418,-500.0,0.00010996,2]
[336275196,1724754662427,-500.0,0.00010996,2]
[336275197,1724754662437,-500.0,0.00010996,2]
[336275198,1724754662447,-500.0,0.00010996,2]
[336275199,1724754662456,-500.0,0.00010996,2]
[336275200,1724754662466,-500.0,0.00010996,2]
[336275201,1724754662476,-500.0,0.00010996,2]
[336275202,1724754662485,-500.0,0.00010996,2]
[336275203,1724754662495,-500.0,0.00010996,2]
[336275204,1724754662504,-500.0,0.00010996,2]
[336275205,1724754662513,-699.79,0.00010996,2]
[336275206,1724754662522,-699.79,0.00010996,2]
[336275207,1724754662533,-500.0,0.00010996,2]
[336275208,1724754662542,-500.0,0.00010996,2]
[336275209,1724754662551,-500.0,0.00010996,2]
[336275210,1724754662561,-500.0,0.00010996,2]
[336275211,1724754662571,-500.0,0.00010996,2]
[336275212,1724754662580,-500.0,0.00010996,2]
[336275213,1724754662590,-500.0,0.00010996,2]
[336275214,1724754662599,-500.0,0.00010996,2]
[336275215,1724754662609,-500.0,0.00010996,2]
[336275216,1724754662619,-500.0,0.00010996,2]
[336275217,1724754662629,-500.0,0.00010996,2]
[336275218,1724754662638,-500.0,0.00010996,2]
[336275219,1724754662647,-500.0,0.00010996,2]
[336275220,1724754662657,-500.0,0.00010996,2]
[336275221,1724754662667,-500.0,0.00010996,2]
[336275222,1724754662676,-500.0,0.00010996,2]
[336275223,1724754662686,-500.0,0.00010996,2]
[336275224,1724754662695,-706.79,0.00010996,2]
[336275225,1724754662705,-706.79,0.00010996,2]
[336275226,1724754662714,-500.0,0.00010996,2]
[336275227,1724754662723,-500.0,0.00010996,2]
[336275228,1724754662733,-993.19,0.00010996,2]
[336275229,1724754662742,-993.19,0.00010996,2]
[336275230,1724754662751,-517.22,0.00010996,2]
[336275231,1724754662760,-517.22,0.00010996,2]
[336275232,1724754662770,-500.0,0.00010996,2]
[336275233,1724754662779,-500.0,0.00010996,2]
[336275234,1724754662789,-1468.89,0.00010996,2]
[336275235,1724754662798,-500.0,0.00010996,2]
[336275236,1724754662808,-1468.89,0.00010996,2]
[336275237,1724754662817,-1264.99,0.00010996,2]
[336275238,1724754662827,-1264.99,0.00010996,2]
[336275239,1724754662838,-500.0,0.00010996,2]
[336275240,1724754662847,-497.01176865,0.00010996,2]
[336275241,1724754662857,-1195.84,0.00010996,2]
[336275242,1724754662866,-500.0,0.00010996,2]
[336275243,1724754662875,-500.0,0.00010996,2]
[336275244,1724754662885,-635.42,0.00010996,2]
[336275245,1724754662894,-1195.84,0.00010996,2]
[336275246,1724754662903,-635.42,0.00010996,2]
[336275247,1724754662913,-500.0,0.00010996,2]
[336275248,1724754662926,-500.0,0.00010996,2]
[336275249,1724754662936,-500.0,0.00010996,2]
[336275250,1724754662946,-500.0,0.00010996,2]
[336275251,1724754662956,-500.0,0.00010996,2]
[336275252,1724754662967,-500.0,0.00010996,2]
[336275253,1724754662976,-859.767831,0.00010996,2]
[336275254,1724754662986,-859.767831,0.00010996,2]
[336275255,1724754662997,-500.0,0.00010996,2]
[336275256,1724754663006,-500.0,0.00010996,2]
[336275257,1724754663016,-500.0,0.00010996,2]
[336275258,1724754663026,-500.0,0.00010996,2]
[336275259,1724754663035,-500.0,0.00010996,2]
[336275260,1724754663045,-563.630067,0.00010996,2]
[336275261,1724754663054,-563.630067,0.00010996,2]
[336275262,1724754663064,-8465.396174,0.00010996,2]
[336275263,1724754663074,-8465.396174,0.00010996,2]
[336275264,1724754663084,-1413.18,0.00010996,2]
[336275265,1724754663093,-1413.18,0.00010996,2]
[336275266,1724754663103,-1595.52,0.00010996,2]
[336275267,1724754663112,-1595.52,0.00010996,2]
[336275268,1724754663122,-500.0,0.00010996,2]
[336275269,1724754663132,-500.0,0.00010996,2]
[336275270,1724754663142,-2732.42,0.00010996,2]
[336275271,1724754663152,-500.0,0.00010996,2]
[336275272,1724754663162,-2732.42,0.00010996,2]
[336275273,1724754663172,-500.0,0.00010996,2]
[336275274,1724754663181,-500.0,0.00010996,2]
[336275275,1724754663191,-500.0,0.00010996,2]
[336275276,1724754663201,-1000.0,0.00010996,2]
[336275277,1724754663211,-500.0,0.00010996,2]
[336275278,1724754663221,-1000.0,0.00010996,2]
[336275279,1724754663230,-500.0,0.00010996,2]
[336275280,1724754663240,-500.0,0.00010996,2]
[336275281,1724754663249,-904.1,0.00010996,2]
[336275282,1724754663260,-500.0,0.00010996,2]
[336275283,1724754663269,-500.0,0.00010996,2]
[336275284,1724754663279,-500.0,0.00010996,2]
[336275285,1724754663289,-1012.6,0.00010996,2]
[336275286,1724754663299,-1012.6,0.00010996,2]
[336275287,1724754663309,-500.0,0.00010996,2]
[336275288,1724754663318,-562.53,0.00010996,2]
[336275289,1724754663328,-562.53,0.00010996,2]
[336275290,1724754663347,-500.0,0.00010996,2]
[336275291,1724754663357,-500.0,0.00010996,2]
[336275292,1724754663367,-656.52,0.00010996,2]
[336275293,1724754663379,-639.16,0.00010996,2]
[336275294,1724754663389,-500.0,0.00010996,2]
[336275295,1724754663399,-500.0,0.00010996,2]
[336275296,1724754663408,-511.87,0.00010996,2]
[336275297,1724754663418,-511.87,0.00010996,2]
[336275298,1724754663430,-500.0,0.00010996,2]
[336275299,1724754663440,-12295.84,0.00010996,2]
[336275300,1724754663450,-500.0,0.00010996,2]
[336275301,1724754663460,-500.0,0.00010996,2]
[336275302,1724754663470,-12295.84,0.00010996,2]
[336275303,1724754663480,-500.0,0.00010996,2]
[336275304,1724754663490,-500.0,0.00010996,2]
[336275305,1724754663500,-1626.07,0.00010996,2]
[336275306,1724754663510,-500.0,0.00010996,2]
[336275307,1724754663519,-574.53,0.00010996,2]
[336275308,1724754663530,-500.0,0.00010996,2]
[336275309,1724754663540,-574.53,0.00010996,2]
[336275310,1724754663550,-500.0,0.00010996,2]
[336275311,1724754663561,-500.0,0.00010996,2]
[336275312,1724754663571,-500.0,0.00010996,2]
[336275313,1724754663581,-500.0,0.00010996,2]
[336275314,1724754663591,-500.0,0.00010996,2]
[336275315,1724754663601,-500.0,0.00010996,2]
[336275316,1724754663611,-744.8,0.00010996,2]
[336275317,1724754663621,-744.8,0.00010996,2]
[336275318,1724754663630,-500.0,0.00010996,2]
[336275319,1724754663640,-500.0,0.00010996,2]
[336275320,1724754663650,-502.30936246,0.00010996,2]
[336275321,1724754663660,-500.0,0.00010996,2]
[336275322,1724754663670,-638.25112133,0.00010996,2]
[336275323,1724754663679,-500.0,0.00010996,2]
[336275324,1724754663689,-500.0,0.00010996,2]
[336275325,1724754663699,-1448.48,0.00010996,2]
[336275326,1724754663709,-1448.48,0.00010996,2]
[336275327,1724754663720,-500.0,0.00010996,2]
[336275328,1724754663730,-500.0,0.00010996,2]
[336275329,1724754663740,-500.0,0.00010996,2]
[336275330,1724754663750,-500.0,0.00010996,2]
[336275331,1724754663761,-1735.02,0.00010996,2]
[336275332,1724754663772,-500.0,0.00010996,2]
[336275333,1724754663783,-1735.02,0.00010996,2]
[336275334,1724754663793,-500.0,0.00010996,2]
[336275335,1724754663803,-4508.4,0.00010996,2]
[336275336,1724754663813,-500.0,0.00010996,2]
[336275337,1724754663822,-500.0,0.00010996,2]
[336275338,1724754663833,-500.0,0.00010996,2]
[336275339,1724754663843,-500.0,0.00010996,2]
[336275340,1724754663852,-500.0,0.00010996,2]
[336275341,1724754663880,-1956.4,0.00010996,2]
[336275342,1724754663890,-500.0,0.00010996,2]
[336275343,1724754663899,-500.0,0.00010996,2]
[336275344,1724754663909,-500.0,0.00010996,2]
[336275345,1724754663923,-3911.0,0.00010996,2]
[336275346,1724754663933,-500.0,0.00010996,2]
[336275347,1724754663943,-500.0,0.00010996,2]
[336275348,1724754663953,-500.0,0.00010996,2]
[336275349,1724754663963,-500.0,0.00010996,2]
[336275350,1724754663973,-163.95171075,0.00010996,2]
[336275351,1724754663983,-3388.1,0.00010996,2]
[336275352,1724754663992,-3388.1,0.00010996,2]
[336275353,1724754664004,-500.0,0.00010996,2]
[336275354,1724754664014,-500.0,0.00010996,2]
[336275355,1724754664024,-500.0,0.00010996,2]
[336275356,1724754664033,-500.0,0.00010996,2]
[336275357,1724754664044,-558.67,0.00010996,2]
[336275358,1724754664053,-558.67,0.00010996,2]
[336275359,1724754664063,-500.0,0.00010996,2]
[336275360,1724754664073,-500.0,0.00010996,2]
[336275361,1724754664083,-500.0,0.00010996,2]
[336275362,1724754664093,-500.0,0.00010996,2]
[336275363,1724754664103,-500.0,0.00010996,2]